Cogmind - Beta 13 @@@ ROGUE MODE // 2024.04.01 @ 19:38:22 Player: Prince Result: Destroyed by G-34 Mercenary with Small Laser Performance ------------- Evolutions (1) 500 Regions Visited (2) 400 Robots Destroyed (41) 205 Value Destroyed (1152) 1152 Prototype IDs (1) 20 Alien Tech Used (0) 0 Bonus (92) 92 TOTAL SCORE: 2369 Bonus ------- High Alert Combat Kills 92 Cogmind --------- Core Integrity 0/400 Matter 290/300 Energy 244/280 System Corruption 10% Temperature Critical (515) Movement Walking (190) Ox1 Location -9/Materials Parts ------- > --- POWER (1) -------- Heavy Ion Engine > --- PROPULSION (3) --- Aluminum Leg Aluminum Leg > --- UTILITY (3) ------ Large Storage Unit Advanced Targeting Computer Light Armor Plating > --- WEAPON (2) ------- Beam Rifle Particle Cannon > --- INVENTORY (15) --- Ion Engine Light Ion Engine Heavy Ion Engine Aluminum Leg Aluminum Leg Aluminum Leg High-capacity Battery (250) Medium Matter Pod (100) Machine Analyzer Improved Signal Interpreter Datajack Great Maul Peak State ------------ > --- POWER ------------ Heavy Ion Engine > --- PROPULSION ------- Aluminum Leg Aluminum Leg Aluminum Leg > --- UTILITY ---------- Large Storage Unit Advanced Targeting Computer Light Armor Plating > --- WEAPON ----------- Beam Rifle Beam Rifle > --- INVENTORY -------- Ion Engine Light Ion Engine Heavy Ion Engine Aluminum Leg High-capacity Battery Medium Matter Pod Machine Analyzer Improved Signal Interpreter Particle Cannon Datajack Great Maul [Rating: 17] Favorites ----------- Power Light Ion Engine Engine Light Ion Engine Propulsion Aluminum Leg Leg Aluminum Leg Utility Medium Storage Unit Storage Medium Storage Unit Processor Advanced Targeting Computer Protection Light Armor Plating Weapon Light Assault Rifle Energy Gun Beam Rifle Energy Cannon Particle Cannon Ballistic Gun Light Assault Rifle Impact Weapon Great Maul Special Melee Weapon Datajack Build | -11 -10 -9 ------- Run | Yrd Mat Mat Slots Evolved 2 | . . 2 Power . | . . . Propulsion 1 | . . 1 Utility 1 | . . 1 Weapon . | . . . Parts Attached 44 | 3 8 33 Power 5 | 1 2 2 Engine 5 | 1 2 2 Core . | . . . Reactor . | . . . Propulsion 12 | 1 1 10 Treads . | . . . Leg 12 | 1 1 10 Wheel . | . . . Hover . | . . . Flight . | . . . Utility 10 | 1 1 8 Device . | . . . Storage 5 | 1 1 3 Processor 1 | . . 1 Hackware . | . . . Protection 4 | . . 4 Artifact . | . . . Weapon 17 | . 4 13 Energy Gun 5 | . 1 4 Energy Cannon 2 | . . 2 Ballistic Gun 7 | . 3 4 Ballistic Cannon . | . . . Launcher . | . . . Special Weapon . | . . . Impact Weapon 2 | . . 2 Slashing Weapon . | . . . Piercing Weapon . | . . . Special Melee Weapon 1 | . . 1 Unidentified Prototypes 1 | . . 1 Corrupted Parts 1 | . . 1 System Corruption 10 | . . 10 Parts Lost 9 | . 1 8 Power 2 | . 1 1 Propulsion 4 | . . 4 Utility 1 | . . 1 Weapon 2 | . . 2 Highest Loss Streak 3 | . 1 3 To Critical Strikes 2 | . . 2 Average Slot Usage (%) 90 | . 91 90 Engine 10 | . 13 7 Leg 28 | . 28 28 Storage 15 | . 20 11 Processor 5 | . . 10 Protection 5 | . . 10 Energy Gun 5 | . . 10 Energy Cannon 1 | . . 2 Ballistic Gun 14 | . 27 2 Impact Weapon 2 | . . 5 Naked Turns . | . . . Heaviest Build 37 | 8 22 37 Greatest Support 30 | 10 20 30 Greatest Overweight (x) 1 | . 1 1 Average Overweight (x) . | . . . Largest Inventory Capacity 15 | 8 10 15 Average Capacity 9 | 7 8 10 Most Carried 13 | 7 10 13 Average Carried 8 | 5 7 9 Final Capacity 15 | 8 10 15 Final Carried 12 | 7 10 12 Class Distribution -------------------- 77% | Mutant 22% | Scavenger-Mutant Dominant Class ---------------- Mutant | -10/Materials Mutant | -9/Materials Resources | -11 -10 -9 ----------- Run | Yrd Mat Mat Matter Collected 781 | 190 154 437 Remotely . | . . . Salvage Created 1355 | . 199 1156 Parts 82 | . 13 69 Haulers Intercepted . | . . . Recyclers Shooed 3 | . . 3 Parts Field Recycled . | . . . Retrieved Matter . | . . . Parts Self-Destructed . | . . . Prevented . | . . . Kills | -11 -10 -9 ------- Run | Yrd Mat Mat Combat Hostiles Destroyed 33 | . 4 29 Melee 2 | . . 2 Guns 16 | . 4 12 Cannons 9 | . . 9 Classes Destroyed 7 | . 2 5 Worker 2 | . . 2 Recycler 1 | . . 1 Operator 1 | . . 1 Watcher 4 | . 1 3 Swarmer 8 | . . 8 Grunt 17 | . 4 13 Sentry 8 | . . 8 Best Kill Streak 8 | . 3 8 Combat Bots Only 7 | . 3 7 Max Kills in Single Turn 1 | . 1 1 Gunslinging . | . . . Exploded . | . . . Melee 1 | . . 1 Uniques/NPCs Destroyed . | . . . Combat | -11 -10 -9 -------- Run | Yrd Mat Mat Hostile Shots Fired 198 | . 18 180 Missed 49 | . 3 46 Damage Taken 1970 | . 186 1784 Core 455 | . 46 409 Absorbed by Shields . | . . . Redirected to Shielding 49 | . . 49 Regen/Repaired (Parts) 87 | . . 87 Core Remaining (%) 90 | 100 81 . Volleys Fired 98 | . 31 67 Largest 2 | . 2 2 Hottest 124 | . 65 124 Shots Fired 161 | . 60 101 Gun 126 | . 60 66 Cannon 35 | . . 35 Launcher . | . . . Special . | . . . Kinetic 58 | . 58 . Thermal 103 | . 2 101 Explosive . | . . . Electromagnetic . | . . . Robot Hit Streak 14 | . 14 11 Robot Miss Streak 3 | . 3 2 Penetration Max . | . . . Secondary Targets 2 | . . 2 Max Gunslinging Chain 1 | . . 1 Shots Hit Robots 127 | . 36 91 Core Hits 50 | . 14 36 Critical Kills . | . . . Critical Parts Destroyed 2 | . . 2 Critical Strikes 7 | . . 7 Burn 5 | . . 5 Smash 2 | . . 2 Melee Attacks 26 | . . 26 Impact 21 | . . 21 Slashing . | . . . Piercing . | . . . Sneak Attacks 4 | . . 4 Combat Hostiles . | . . . Follow-up Attacks . | . . . Damage Inflicted 2296 | . 272 2024 Guns 985 | . 272 713 Cannons 430 | . . 430 Explosions 107 | . . 107 Melee 773 | . . 773 Ramming 1 | . . 1 Kinetic 272 | . 272 . Thermal 1250 | . . 1250 Explosive . | . . . Electromagnetic . | . . . Impact 773 | . . 773 Slashing . | . . . Piercing . | . . . Highest Corruption 10 | . 1 10 Average Corruption 8 | . 1 10 Corruption Purged . | . . . Corruption Blocked . | . . . Effects 19 | . 2 17 Message Errors 7 | . . 7 Matter Fused 5 | . 1 4 Heat Flow Errors 1 | . . 1 Energy Discharges 1 | . 1 . Data Loss (minor) 1 | . . 1 Data Loss (major) 3 | . . 3 Misfires 1 | . . 1 Overload Shots . | . . . Overflow Damage 259 | . . 259 Projectiles . | . . . Explosions 48 | . . 48 Melee 211 | . . 211 Knockbacks 2 | . . 2 Impact 2 | . . 2 Kinetic . | . . . Secondary . | . . . Self-Inflicted Damage 198 | . . 198 Shots 2 | . . 2 Rammed . | . . . Targets Rammed 2 | . 1 1 Kicked 2 | . 1 1 Crushed . | . . . Highest Temperature 509 | . 48 509 Average Temperature 95 | . 11 104 Received Heat Transfer 663 | . 102 561 Effects 2 | . . 2 Shutdowns 1 | . . 1 Interference 1 | . . 1 Siege Activations . | . . . Robots Corrupted . | . . . Combat Hostiles . | . . . Parts Fried 1 | . . 1 Impact Corruptions 12 | . . 12 Robots Melted . | . . . Combat Hostiles . | . . . Parts Melted 5 | . . 5 Heat Transferred 3060 | . . 3060 Parts Sabotaged . | . . . Parts Stolen . | . . . Parts Stripped . | . . . Power Chain Reactions . | . . . Alert | -11 -10 -9 ------- Run | Yrd Mat Mat Peak Influence 636 | . 60 636 Initial 9 | . . 9 Average 170 | . 5 339 Maximum Alert Level 2 | . . 2 Low Security (%) 60 | 100 100 20 Level 1 17 | . . 34 Level 2 22 | . . 45 Level 3 . | . . . Level 4 . | . . . Level 5 . | . . . High Security . | . . . Max Security . | . . . Squads Dispatched 6 | . 1 5 Investigation 4 | . . 4 Extermination . | . . . Reinforcement 2 | . 1 1 Assault . | . . . Garrison . | . . . Intercept . | . . . Searches Triggered . | . . . Construction Impeded . | . . . Haulers Reinforced . | . . . Active Scanning Responses . | . . . Cargo Convoy Interrupts . | . . . Stealth | -11 -10 -9 --------- Run | Yrd Mat Mat Distress Signals 3 | . . 3 Communications Jammed . | . . . Distress Signals . | . . . Times Spotted 50 | . 11 39 Peak Tracking Total 5 | . 2 5 Tactical Retreats 3 | . 2 1 Traps | -11 -10 -9 ------- Run | Yrd Mat Mat Traps Triggered 2 | . 1 1 Indirectly . | . . . Trap Hack Attempts . | . . . Triggered . | . . . Disarmed . | . . . Reprogrammed . | . . . Reused . | . . . Traps Extracted . | . . . Installed . | . . . Triggered . | . . . Machines | -11 -10 -9 ---------- Run | Yrd Mat Mat Machines Disabled 2 | . . 2 Max in Single Turn 2 | . . 2 Machines Repaired . | . . . Machines Dismantled . | . . . Machines Sabotaged . | . . . Overloaded Fab Kills . | . . . Hacking | -11 -10 -9 --------- Run | Yrd Mat Mat Machines Accessed 11 | . 4 7 Terminals 7 | . 3 4 Fabricators . | . . . Repair Stations 1 | . . 1 Recycling Units 2 | . 1 1 Scanalyzers 1 | . . 1 Garrison Access . | . . . Total Hacks 33 | . 12 21 Successful 16 | . 4 12 Failed 17 | . 8 9 Catastrophic 3 | . 2 1 Database Lockouts . | . . . Manual 8 | . 4 4 Terminals 22 | . 11 11 Fabricators . | . . . Repair Stations 5 | . . 5 Recycling Units 4 | . 1 3 Scanalyzers 2 | . . 2 Garrison Access . | . . . Terminal Hacks 8 | . 3 5 Record 1 | . . 1 Robot Analysis 2 | . . 2 Alert Level 2 | . 1 1 Unreport Threat 1 | . 1 . Hauler Manifests 1 | . 1 . Zone Layout 1 | . . 1 Fabricator Hacks . | . . . Repair Station Hacks 3 | . . 3 Scan Component 2 | . . 2 Repair 1 | . . 1 Recycling Unit Hacks 3 | . 1 2 Report Inventory 2 | . 1 1 Retrieve Components 1 | . . 1 Scanalyzer 2 | . . 2 Insert Component 1 | . . 1 Analyze 1 | . . 1 Garrison Access Hacks . | . . . Unauthorized Hacks . | . . . Terminals . | . . . Fabricators . | . . . Repair Stations . | . . . Recycling Units . | . . . Scanalyzers . | . . . Garrison Access . | . . . Data Cores Recovered 1 | . . 1 Used . | . . . Hacking Detections 8 | . 3 5 Full Trace Events 5 | . 1 4 Feedback Events . | . . . Feedback Blocked . | . . . Robot Schematics Acquired . | . . . Robots Built . | . . . Authchips . | . . . Time . | . . . Total Robot Build Rating . | . . . Part Schematics Acquired 1 | . . 1 Parts Built . | . . . Authchips . | . . . Time . | . . . Total Part Build Rating . | . . . Parts Repaired 1 | . . 1 Time 13 | . . 13 Parts Recycled . | . . . Recycled Matter . | . . . Retrieved Matter . | . . . Retrieved Components 10 | . . 10 Parts Scanalyzed 1 | . . 1 Part Schematics Acquired 1 | . . 1 Parts Damaged . | . . . Bothacking | -11 -10 -9 ------------ Run | Yrd Mat Mat Used RIF Installer . | . . . Robots Hacked 1 | . . 1 Non-combat 1 | . . 1 Combat . | . . . Robot Hacks Applied 3 | . . 3 parse_system 1 | . . 1 no_distress 1 | . . 1 find_recycling 1 | . . 1 Relay Couplers Released . | . . . Fabnet Peak Effective % . | . . . Robots Rewired . | . . . Allies Hacked . | . . . Hacks Repelled . | . . . Allies | -11 -10 -9 -------- Run | Yrd Mat Mat Total Allies . | . . . Largest Group . | . . . Highest-Rated Group . | . . . Highest-Rated Ally . | . . . Total Orders . | . . . Ally Attacks . | . . . Total Damage . | . . . Kills . | . . . Allies Corrupted . | . . . Allies Melted . | . . . Intel | -11 -10 -9 ------- Run | Yrd Mat Mat Robot Analysis Total 2 | . . 2 Derelict Logs Recovered . | . . . Drone Launches . | . . . Drone Recoveries . | . . . Exploration | -11 -10 -9 ------------- Run | Yrd Mat Mat Turns Passed 1946 | 70 914 962 Spaces Moved 823 | 55 333 435 Core 10 | 10 . . Treads . | . . . Legs 813 | 45 333 435 Wheels . | . . . Hover . | . . . Flight . | . . . Fastest Speed 50 | 50 120 120 Average Speed 145 | 107 164 136 Slowest Speed 190 | 120 190 190 Overloaded Moves . | . . . Propulsion Burnouts . | . . . Robots Hopped . | . . . Cave-ins Triggered . | . . . Exploration Rate (%) 37 | 4 61 48 Regions Visited 2 Branch Regions . Pre-discovered Areas . | . . . Known Exits Taken . | . . . Unknown Exits Taken 2 | 1 1 . Scrap Searched . | . . . Spaces Dug . | . . . Terrain Destroyed 37 | . . 37 Melee . | . . . Projectile . | . . . AOE 37 | . . 37 Terrain Rammed . | . . . Walls Destroyed . | . . . Machines Disabled . | . . . Actions | -11 -10 -9 --------- Run | Yrd Mat Mat Total 1381 | 65 653 663 Wait 329 | . 265 64 Move 821 | 54 332 435 Hop . | . . . Pick Up 37 | 8 10 19 Fast Attach 9 | 2 3 4 Attach 15 | 1 4 10 Detach 1 | . 1 . Swap 20 | . 1 19 Drop 23 | . 5 18 Fire 98 | . 31 67 Melee 26 | . . 26 Ram . | . . . Kick 2 | . 1 1 Crush . | . . . Escape Stasis . | . . . Rewire . | . . . Trap . | . . . Miscellaneous . | . . . Route ------- -11/Scrapyard -10/Materials (discovered 2 exits: *Mat x2) -9/Materials History --------- Turn | Location | Event 26 | -11/Scrapyard | Discovered new exit (range 15) 71 | -11/Scrapyard | Entered Materials 300 | -10/Materials | Build established: Mutant 508 | -10/Materials | Discovered new exit (range 8) 911 | -10/Materials | Discovered new exit (range 15) 985 | -10/Materials | Entered another Materials area 985 | -9/Materials | Evolved 2 slots: Propulsion x1, Utility x1 1336 | -9/Materials | Destroyed 7 combat bots 1383 | -9/Materials | Core integrity fell below 50% 1404 | -9/Materials | Lost 3 parts (2n1w) 1421 | -9/Materials | System corruption reached 10% 1452 | -9/Materials | Repaired Aluminum Leg 1767 | -9/Materials | Core integrity fell below 20% 1947 | -9/Materials | Destroyed by G-34 Mercenary with Small Laser Last Messages --------------- K-01 Serf collects debris. Critical hit (Destroy). Aluminum Leg destroyed. K-01 Serf collects debris. Acquired Aluminum Leg. K-01 Serf collects debris. Acquired Aluminum Leg. S-10 Pest destroyed. K-01 Serf collects debris. S-10 Pest suffers critical hit (Burn). S-10 Pest destroyed. Switching to secondary target: G-34 Mercenary. Critical hit (Destroy). Beam Rifle destroyed. K-01 Serf collects debris. K-01 Serf destroyed. Overheating: System interference. Adv. Targeting Computer temporarily disabled. S-10 Pest destroyed. Power failure, Hvy. Ion Engine shutdown. Map ----- +----------------------------------------------------+ | ???????????????????# #?# ??????? | | ???????????????????####+######?# ##### ????? | | ?????????????????????# ########## ##?????###???? | | ?????????????????????# # # #????????????? | | ?????????????????????# # [ "" # #????????????? | | ?????????????????????# + "" # #????????????? | | ?????????????????????# # T" # #????????????? | | ?????????????????????# # "" # #????????????? | | ?????????????????????# #! "" # #????????????? | | ?????????????????????# # #??????????????? | | ?????????????????????# ##########??????????????? | | ?????????????????????# ########## ##???????????? | | ?????????????????????# ???????????? | | ?????????????????????# ???????????? | | ?????????????????????# ???????????? | | ?????????????????????# ############????????????? | | ?????????????????????# #???????????????????????? | | ?????????????????????# #???????????????????????? | | ?????????????????????# #???????????????????????? | | ?????????????????????#[ #???????????????????????? | | ?????????????????????#% #???????????????????????? | | ?????????????????????#! #???????????????????????? | | ???????????###+####### ##########+####?????????? | | ?????????? ! =*== ????????? | | ?????????? =%*%[=%[% ????????? | | ?????????? g @=%=[ T ?????????? | | ?????????? ###/#############+####### ????????? | | ?????????????????????????????????????????????????? | | ?????????????????????????????????????????????????? | | ?????????????????????????????????????????????????? | | ?????????????????????????????????????????????????? | | ?????????????????????????????????????????????????? | | ?????????????????????????????????????????????????? | | ?????????????????????????????????????????????? | | ?????????????????????????????????????????????? | | ?????????????????????????????????????????????? | | ??????????????????????????????????????????????? | | ??????????????????????????????????????????????? | | ????????????????????????????????????????????????## | | ?????????????????????????????????????????????????? | | ?????????????????????????????????????????????????? | | ?????????????????????????????????????????????????? | | ?????????????????????????????????????????????????? | | ?????????????????????????????????????????????????? | | ?????????????????????????????????????????????????? | | ?????????????????????????????????????????????????? | | ?????????????????????????????????????????????????? | | ?????????????????????????????????????????????????? | | ?????????????????????????????????????????????????? | | | +----------------------------------------------------+ Best States ------------- Heat Dissipation 28 Energy Generation 14 Energy Capacity 280 Matter Stores 300 Matter Capacity 400 Sight Range 16 Terrain Scan Density 10 Armor Coverage 150 Core Shielding 20 Evasion (%) 55 Targeting Accuracy 8 Item Schematics ----------------- Aluminum Leg | -9/Materials | Scanalyzed Robot Schematics ------------------ None Fabricated ------------ Nothing Alien Tech Used ----------------- None Achievements -------------- None Challenges ------------ None Game ------ Seed StealthInsulatedShield Manual? 0 Play Time 00:22:12 Cumulative 5.5 hours Start 2024.04.01 @ 19:18:55 End 2024.04.01 @ 19:38:22 Sessions 1 Manual Loads 0 Difficulty Rogue Special Mode None Game No. 12 Rogue 12 Adventurer 0 Explorer 0 Win Type - Total 0 Types 0/0/0/0/0/0/0/0/0 Lore% 6 Gallery% 12 Achievement% 14 Wizard Run 0 Options --------- Layout 1 ASCII 0 Keyboard 0 Movement Mouse Keybinds 0 Fullscreen 2 Font 32/SmallcapsGlow Map View 50x35 Zoom Use 0% Tactical HUD 0 Map Filters NONE Filters NONE Steam 1 RUN: 3a3e6c60-797f-4b20-887d-f3c2b6ef29ba